[Event "36th Indian-ch U13 Girls 2023"]
[Site "Secunderabad"]
[Date "2023.12.05"]
[Round "2.4"]
[White "Nivedita V C"]
[Black "Vidhi Angelina"]
[Result "1-0"]
[ECO "D35"]
[WhiteElo "1638"]
[BlackElo "1247"]
[Annotator "NA RC"]
[PlyCount "149"]
[EventDate "2023.12.04"]
[EventType "swiss"]
[EventCountry "IND"]
[SourceTitle "playchess.com"]
[Source "ChessBase"]
[SourceQuality "1"]
[TimeControl "5400+30"]

1. d4 {[%emt 0:00:05]} d5 {[%emt 0:01:10]} 2. c4 {[%emt 0:00:11]} e6 {[%emt 0:00:07]} 3. Nc3 {[%emt 0:00:04]} Nf6 {[%emt 0:00:09]} 4. Bf4 {[%emt 0:00:20]} c5 {[%emt 0:01:28]} 5. e3 {[%emt 0:00:38]} cxd4 {[%emt 0:00:39]} 6. exd4 {[%emt 0:01:06]} dxc4 {[%emt 0:01:10]} 7. Bxc4 {[%emt 0:00:32]} Bd6 {[%emt 0:00:52]} 8. Be5 {[%emt 0:20:13]} Bxe5 {[%emt 0:29:41]} 9. dxe5 {[%emt 0:00:04]} Qc7 {[%emt 0:17:40]} 10. exf6 {[%emt 0:08:37]} Qxc4 {[%emt 0:00:27]} 11. Rc1 {[%emt 0:03:24]} Bd7 {[%emt 0:08:50]} 12. fxg7 {[%emt 0:14:20]} Rg8 {[%emt 0:00:51]} 13. Nge2 {[%emt 0:15:15]} Bc6 {[%emt 0:15:31]} 14. O-O {[%emt 0:04:08]} Rxg7 {[%emt 0:01:45]} 15. Ng3 {[%emt 0:00:07]} Nd7 {[%emt 0:04:14]} 16. Nce4 {[%emt 0:04:36]} Qd5 {[%emt 0:02:49]} 17. Qe2 {[%emt 0:01:26]} Rxg3 {[%emt 0:05:02]} 18. hxg3 {[%emt 0:07:22]} Qxe4 {[%emt 0:00:25]} 19. Qxe4 {[%emt 0:00:03]} Bxe4 {[%emt 0:07:10]} 20. Rfd1 {[%emt 0:00:22]} Ke7 {[%emt 0:00:00]} 21. b4 {[%emt 0:02:17]} a6 {[%emt 0:00:00]} 22. g4 {[%emt 0:02:19]} Bd5 {[%emt 0:00:00]} 23. a3 {[%emt 0:00:29]} Rg8 {[%emt 0:00:00]} 24. f3 {[%emt 0:05:05]} h5 {[%emt 0:00:00]} 25. gxh5 {[%emt 0:00:10]} Bxf3 {[%emt 0:00:00]} 26. Rd2 {[%emt 0:00:06]} Bc6 {[%emt 0:00:00]} 27. Kh2 {[%emt 0:04:53]} Ne5 {[%emt 0:00:00]} 28. a4 {[%emt 0:01:17]} Ng4+ {[%emt 0:00:50]} 29. Kg1 {[%emt 0:02:02]} Rg5 {[%emt 0:00:53]} 30. Rc5 {[%emt 0:02:05]} Ne5 {[%emt 0:01:23]} 31. h6 {[%emt 0:01:03]} Nf3+ {[%emt 0:01:31]} 32. Kh1 {[%emt 0:00:47]} Rxc5 {[%emt 0:00:21]} 33. bxc5 {[%emt 0:00:11]} Ng5 {[%emt 0:00:14]} 34. Rf2 {[%emt 0:01:08]} f5 {[%emt 0:00:17]} 35. Kh2 {[%emt 0:00:27]} Kf6 {[%emt 0:00:29]} 36. g4 {[%emt 0:00:15]} Bxa4 {[%emt 0:00:33]} 37. gxf5 {[%emt 0:00:33]} exf5 {[%emt 0:00:04]} 38. Rg2 {[%emt 0:00:09]} Kg6 {[%emt 0:02:13]} 39. Rxg5+ {[%emt 0:00:07]} Kxh6 {[%emt 0:00:03]} 40. Rxf5 {[%emt 0:00:06]} Bc6 {[%emt 0:00:07]} 41. Kg3 {[%emt 0:00:33]} Kg6 {[%emt 0:00:03]} 42. Kf4 {[%emt 0:00:08]} a5 {[%emt 0:00:16]} 43. Ke5 {[%emt 0:00:32]} a4 {[%emt 0:00:06]} 44. Rf8 {[%emt 0:01:06]} Kg7 {[%emt 0:00:31]} 45. Ra8 {[%emt 0:00:20]} Kf7 {[%emt 0:00:32]} 46. Kd6 {[%emt 0:00:05]} Kf6 {[%emt 0:00:31]} 47. Rf8+ {[%emt 0:00:18]} Kg6 {[%emt 0:00:29]} 48. Kc7 {[%emt 0:00:30]} Kg7 {[%emt 0:00:19]} 49. Rf2 {[%emt 0:00:14]} Kg6 {[%emt 0:00:10]} 50. Kb6 {[%emt 0:00:05]} Kg7 {[%emt 0:00:29]} 51. Ka5 {[%emt 0:00:22]} Kg6 {[%emt 0:01:19]} 52. Kb4 {[%emt 0:03:55]} Kg7 {[%emt 0:02:47]} 53. Kc4 {[%emt 0:00:00]} Kg6 {[%emt 0:00:00]} 54. Kd4 {[%emt 0:00:00]} Kg5 {[%emt 0:00:00]} 55. Ke5 {[%emt 0:00:00]} Kg4 {[%emt 0:01:30]} 56. Ra2 {[%emt 0:00:00]} Kf3 {[%emt 0:00:00]} 57. Ra3+ {[%emt 0:00:00]} Ke2 {[%emt 0:00:00]} 58. Kd4 {[%emt 0:00:00]} Kd2 {[%emt 0:00:00]} 59. Kc4 {[%emt 0:00:00]} Kc2 {[%emt 0:00:36]} 60. Kb4 {[%emt 0:00:09]} Kb2 {[%emt 0:00:28]} 61. Rh3 {[%emt 0:00:09]} Ka2 {[%emt 0:00:33]} 62. Rh6 {[%emt 0:01:04]} Kb2 {[%emt 0:00:23]} 63. Rh2+ {[%emt 0:00:23]} Kb1 {[%emt 0:00:19]} 64. Rf2 {[%emt 0:00:04]} Kc1 {[%emt 0:00:15]} 65. Kc3 {[%emt 0:01:10]} Kb1 {[%emt 0:00:50]} 66. Re2 {[%emt 0:00:53]} a3 {[%emt 0:00:53]} 67. Kb3 {[%emt 0:00:18]} Bd5+ {[%emt 0:00:53]} 68. Kxa3 {[%emt 0:00:02]} Bc6 {[%emt 0:00:17]} 69. Kb4 {[%emt 0:00:04]} Kc1 {[%emt 0:00:03]} 70. Ka5 {[%emt 0:00:05]} Kd1 {[%emt 0:00:16]} 71. Rh2 {[%emt 0:00:03]} Kc1 {[%emt 0:00:23]} 72. Kb6 {[%emt 0:00:03]} Kd1 {[%emt 0:00:10]} 73. Rh6 {[%emt 0:00:04]} Be4 {[%emt 0:00:24]} 74. Re6 {[%emt 0:00:11]} Bf3 {[%emt 0:00:10]} 75. Re7 {[%emt 0:06:48]} 1-0

[Event "36th Indian-ch U13 Girls 2023"]
[Site "Secunderabad"]
[Date "2023.12.05"]
[Round "2.5"]
[White "Pratyasha Jena"]
[Black "Nancee Cheryl"]
[Result "1-0"]
[ECO "C65"]
[WhiteElo "1603"]
[BlackElo "1237"]
[Annotator "NA RC"]
[PlyCount "91"]
[EventDate "2023.12.04"]
[EventType "swiss"]
[EventCountry "IND"]
[SourceTitle "playchess.com"]
[Source "ChessBase"]
[SourceQuality "1"]
[TimeControl "5400+30"]

1. e4 {[%emt 0:00:03]} e5 {[%emt 0:00:09]} 2. Nf3 {[%emt 0:00:07]} Nc6 {[%emt 0:00:06]} 3. Bb5 {[%emt 0:00:07]} Bc5 {[%emt 0:00:14]} 4. d3 {[%emt 0:01:05]} Nf6 {[%emt 0:01:42]} 5. c3 {[%emt 0:02:32]} d6 {[%emt 0:03:25]} 6. Nbd2 {[%emt 0:01:43]} O-O {[%emt 0:01:14]} 7. O-O {[%emt 0:01:22]} a6 {[%emt 0:00:34]} 8. Ba4 {[%emt 0:00:30]} h6 {[%emt 0:02:30]} 9. h3 {[%emt 0:00:35]} Ne7 {[%emt 0:07:40]} 10. Re1 {[%emt 0:01:14]} Ng6 {[%emt 0:01:05]} 11. Nf1 {[%emt 0:03:04]} b5 {[%emt 0:06:47]} 12. Bc2 {[%emt 0:02:21]} Re8 {[%emt 0:03:07]} 13. d4 {[%emt 0:12:07]} exd4 {[%emt 0:00:20]} 14. cxd4 {[%emt 0:00:25]} Bb4 {[%emt 0:00:40]} 15. Bd2 {[%emt 0:00:54]} Bxd2 {[%emt 0:00:40]} 16. Qxd2 {[%emt 0:01:52]} c5 {[%emt 0:07:15]} 17. Rac1 {[%emt 0:06:05]} Bb7 {[%emt 0:02:28]} 18. Ng3 {[%emt 0:05:00]} Qb6 {[%emt 0:02:13]} 19. e5 {[%emt 0:12:14]} dxe5 {[%emt 0:05:49]} 20. Bxg6 {[%emt 0:01:56]} Bxf3 {[%emt 0:01:50]} 21. dxe5 {[%emt 0:08:28]} fxg6 {[%emt 0:02:01]} 22. exf6 {[%emt 0:02:28]} Bb7 {[%emt 0:02:08]} 23. Qd7 {[%emt 0:00:53]} Rxe1+ {[%emt 0:02:20]} 24. Rxe1 {[%emt 0:35:25]} Qxf6 {[%emt 0:01:18]} 25. Qxb7 {[%emt 0:00:00]} Rf8 {[%emt 0:00:22]} 26. Qd5+ {[%emt 0:00:00]} Kh7 {[%emt 0:00:35]} 27. Qxc5 {[%emt 0:00:00]} Rd8 {[%emt 0:01:22]} 28. Qc3 {[%emt 0:00:00]} Qg5 {[%emt 0:01:54]} 29. Qe3 {[%emt 0:00:00]} Qd5 {[%emt 0:01:35]} 30. b3 {[%emt 0:00:00]} Qc6 {[%emt 0:01:54]} 31. Rc1 {[%emt 0:00:00]} Qf6 {[%emt 0:00:44]} 32. Rc7 {[%emt 0:00:00]} Rd1+ {[%emt 0:01:17]} 33. Kh2 {[%emt 0:00:00]} h5 {[%emt 0:02:02]} 34. Qc3 {[%emt 0:00:00]} Qf8 {[%emt 0:00:21]} 35. Qc2 {[%emt 0:00:00]} Rd5 {[%emt 0:00:43]} 36. Qe4 {[%emt 0:00:00]} Rd2 {[%emt 0:02:15]} 37. Qe7 {[%emt 0:00:00]} Qg8 {[%emt 0:01:25]} 38. Qf7 {[%emt 0:00:00]} Qxf7 {[%emt 0:01:34]} 39. Rxf7 {[%emt 0:00:00]} Rxa2 {[%emt 0:00:44]} 40. Ne4 {[%emt 0:00:00]} a5 {[%emt 0:00:43]} 41. Rb7 {[%emt 0:00:00]} b4 {[%emt 0:00:26]} 42. Ng5+ {[%emt 0:00:00]} Kh6 {[%emt 0:00:27]} 43. h4 {[%emt 0:00:00]} Rxf2 {[%emt 0:00:46]} 44. Rb8 {[%emt 0:00:00]} Rf8 {[%emt 0:00:18]} 45. Rxf8 {[%emt 0:00:00]} a4 {[%emt 0:33:58]} 46. Rh8# {[%emt 0:00:00]} 1-0

[Event "36th Indian-ch U13 Girls 2023"]
[Site "Secunderabad"]
[Date "2023.12.05"]
[Round "2.6"]
[White "Sequeira Jennica"]
[Black "Shreya G Hipparagi"]
[Result "0-1"]
[ECO "B52"]
[WhiteElo "1248"]
[BlackElo "1576"]
[Annotator "NA RC"]
[PlyCount "106"]
[EventDate "2023.12.04"]
[EventType "swiss"]
[EventCountry "IND"]
[SourceTitle "playchess.com"]
[Source "ChessBase"]
[SourceQuality "1"]
[TimeControl "5400+30"]

1. e4 {[%emt 0:00:03]} c5 {[%emt 0:00:09]} 2. Nf3 {[%emt 0:00:06]} d6 {[%emt 0:00:04]} 3. Bb5+ {[%emt 0:00:04]} Bd7 {[%emt 0:00:10]} 4. Bxd7+ {[%emt 0:00:08]} Qxd7 {[%emt 0:00:05]} 5. O-O {[%emt 0:00:11]} Nc6 {[%emt 0:00:09]} 6. c3 {[%emt 0:00:26]} g6 {[%emt 0:02:09]} 7. d4 {[%emt 0:03:06]} cxd4 {[%emt 0:00:19]} 8. cxd4 {[%emt 0:00:15]} Bg7 {[%emt 0:03:51]} 9. Nc3 {[%emt 0:05:23]} Rc8 {[%emt 0:03:29]} 10. Be3 {[%emt 0:05:05]} Na5 {[%emt 0:01:58]} 11. Rc1 {[%emt 0:08:30]} Nc4 {[%emt 0:00:24]} 12. Qe2 {[%emt 0:00:37]} Nxe3 {[%emt 0:00:32]} 13. Qxe3 {[%emt 0:01:08]} Bh6 {[%emt 0:00:14]} 14. Qd3 {[%emt 0:02:05]} Bxc1 {[%emt 0:00:15]} 15. Rxc1 {[%emt 0:00:13]} Nf6 {[%emt 0:11:37]} 16. h3 {[%emt 0:01:06]} O-O {[%emt 0:00:22]} 17. Qe3 {[%emt 0:00:23]} Kg7 {[%emt 0:02:53]} 18. e5 {[%emt 0:03:17]} dxe5 {[%emt 0:00:32]} 19. dxe5 {[%emt 0:01:17]} Nd5 {[%emt 0:01:31]} 20. Qxa7 {[%emt 0:08:04]} Nxc3 {[%emt 0:00:35]} 21. Rxc3 {[%emt 0:02:33]} Rxc3 {[%emt 0:00:14]} 22. bxc3 {[%emt 0:00:14]} Rc8 {[%emt 0:00:16]} 23. Qa3 {[%emt 0:09:09]} Qc7 {[%emt 0:00:31]} 24. Qb4 {[%emt 0:05:04]} Qxc3 {[%emt 0:00:23]} 25. Qxb7 {[%emt 0:05:18]} Rc6 {[%emt 0:02:06]} 26. Kh2 {[%emt 0:04:42]} Qc1 {[%emt 0:01:57]} 27. Qb3 {[%emt 0:04:19]} Qf4+ {[%emt 0:00:42]} 28. g3 {[%emt 0:02:53]} Qc4 {[%emt 0:02:04]} 29. Qb7 {[%emt 0:05:46]} Rc7 {[%emt 0:01:07]} 30. Qb6 {[%emt 0:04:23]} Qc5 {[%emt 0:00:54]} 31. Qb2 {[%emt 0:00:32]} Qd5 {[%emt 0:01:39]} 32. Kg2 {[%emt 0:01:26]} Ra7 {[%emt 0:00:29]} 33. a3 {[%emt 0:02:03]} Rb7 {[%emt 0:01:27]} 34. Qe2 {[%emt 0:01:11]} Rb3 {[%emt 0:00:26]} 35. a4 {[%emt 0:00:51]} Qd3 {[%emt 0:00:16]} 36. Qxd3 {[%emt 0:00:38]} Rxd3 {[%emt 0:00:04]} 37. a5 {[%emt 0:00:28]} Ra3 {[%emt 0:00:11]} 38. Nd4 {[%emt 0:00:13]} Rxa5 {[%emt 0:01:53]} 39. f4 {[%emt 0:00:15]} Ra2+ {[%emt 0:01:17]} 40. Kf3 {[%emt 0:00:21]} Ra3+ {[%emt 0:00:08]} 41. Kf2 {[%emt 0:00:23]} Rd3 {[%emt 0:00:11]} 42. Nf3 {[%emt 0:01:03]} h5 {[%emt 0:01:07]} 43. g4 {[%emt 0:01:34]} f6 {[%emt 0:02:18]} 44. Kg2 {[%emt 0:02:10]} Ra3 {[%emt 0:00:53]} 45. exf6+ {[%emt 0:05:18]} exf6 {[%emt 0:00:57]} 46. Nd4 {[%emt 0:02:56]} Kf7 {[%emt 0:01:37]} 47. Ne2 {[%emt 0:01:32]} Re3 {[%emt 0:01:13]} 48. Ng3 {[%emt 0:01:12]} h4 {[%emt 0:00:34]} 49. Nf1 {[%emt 0:00:27]} Rd3 {[%emt 0:00:10]} 50. Nh2 {[%emt 0:01:20]} Rg3+ {[%emt 0:00:07]} 51. Kf2 {[%emt 0:00:33]} Rxh3 {[%emt 0:01:27]} 52. Nf3 {[%emt 0:00:27]} Rxf3+ {[%emt 0:00:15]} 53. Kxf3 {[%emt 0:00:17]} g5 {[%emt 0:00:05]} 0-1

[Event "36th Indian-ch U13 Girls 2023"]
[Site "Secunderabad"]
[Date "2023.12.05"]
[Round "2.7"]
[White "Sherali Pattnaik"]
[Black "Bruhathi Kondisetti"]
[Result "1-0"]
[ECO "B12"]
[WhiteElo "1575"]
[BlackElo "1230"]
[Annotator "NA RC"]
[PlyCount "70"]
[EventDate "2023.12.04"]
[EventType "swiss"]
[EventCountry "IND"]
[SourceTitle "playchess.com"]
[Source "ChessBase"]
[SourceQuality "1"]
[TimeControl "5400+30"]

1. e4 {[%emt 0:01:04]} c6 {[%emt 0:00:06]} 2. d4 {[%emt 0:00:05]} d5 {[%emt 0:00:09]} 3. e5 {[%emt 0:00:04]} Bf5 {[%emt 0:00:06]} 4. h4 {[%emt 0:00:07]} h5 {[%emt 0:00:06]} 5. Bd3 {[%emt 0:00:10]} Bxd3 {[%emt 0:00:07]} 6. Qxd3 {[%emt 0:00:06]} e6 {[%emt 0:00:10]} 7. Ne2 {[%emt 0:00:45]} Ne7 {[%emt 0:01:09]} 8. Nbc3 {[%emt 0:06:50]} Nf5 {[%emt 0:03:10]} 9. g3 {[%emt 0:01:15]} Nd7 {[%emt 0:03:30]} 10. Bf4 {[%emt 0:04:17]} Qb6 {[%emt 0:02:30]} 11. Kf1 {[%emt 0:05:23]} Be7 {[%emt 0:02:47]} 12. Kg2 {[%emt 0:03:19]} Rc8 {[%emt 0:03:59]} 13. a4 {[%emt 0:11:50]} Qd8 {[%emt 0:02:18]} 14. Nd1 {[%emt 0:05:23]} c5 {[%emt 0:04:09]} 15. c3 {[%emt 0:06:49]} a6 {[%emt 0:05:32]} 16. Ne3 {[%emt 0:04:41]} Nxe3+ {[%emt 0:02:02]} 17. fxe3 {[%emt 0:00:37]} c4 {[%emt 0:11:35]} 18. Qc2 {[%emt 0:00:45]} g5 {[%emt 0:02:46]} 19. hxg5 {[%emt 0:00:25]} Bxg5 {[%emt 0:00:18]} 20. e4 {[%emt 0:01:06]} Nb6 {[%emt 0:04:16]} 21. a5 {[%emt 0:00:43]} Nd7 {[%emt 0:02:14]} 22. exd5 {[%emt 0:00:40]} exd5 {[%emt 0:01:07]} 23. Qf5 {[%emt 0:01:02]} Be7 {[%emt 0:03:56]} 24. Rxh5 {[%emt 0:02:22]} Rxh5 {[%emt 0:01:33]} 25. Qxh5 {[%emt 0:00:03]} Nf8 {[%emt 0:00:34]} 26. Bh6 {[%emt 0:01:14]} Rc6 {[%emt 0:01:02]} 27. Rf1 {[%emt 0:00:43]} Ng6 {[%emt 0:04:22]} 28. Qf5 {[%emt 0:00:12]} Nh8 {[%emt 0:01:29]} 29. Bg7 {[%emt 0:00:49]} Ng6 {[%emt 0:01:28]} 30. Qxf7+ {[%emt 0:00:19]} Kd7 {[%emt 0:00:08]} 31. Qxd5+ {[%emt 0:00:20]} Kc8 {[%emt 0:00:33]} 32. Qxd8+ {[%emt 0:00:14]} Kxd8 {[%emt 0:00:15]} 33. d5 {[%emt 0:00:22]} Rc5 {[%emt 0:00:28]} 34. d6 {[%emt 0:00:26]} Bg5 {[%emt 0:00:14]} 35. Nd4 {[%emt 0:00:30]} Kd7 {[%emt 0:01:23]} 1-0

[Event "36th Indian-ch U13 Girls 2023"]
[Site "Secunderabad"]
[Date "2023.12.05"]
[Round "2.8"]
[White "Sandeepa Priyadarshini Sahoo"]
[Black "Shriyana S Mallya"]
[Result "1-0"]
[ECO "C46"]
[WhiteElo "1245"]
[BlackElo "1561"]
[Annotator "NA RC"]
[PlyCount "113"]
[EventDate "2023.12.04"]
[EventType "swiss"]
[EventCountry "IND"]
[SourceTitle "playchess.com"]
[Source "ChessBase"]
[SourceQuality "1"]
[TimeControl "5400+30"]

1. e4 {[%emt 0:00:03]} e5 {[%emt 0:00:10]} 2. Nf3 {[%emt 0:01:13]} Nc6 {[%emt 0:00:08]} 3. Nc3 {[%emt 0:00:05]} Bc5 {[%emt 0:00:15]} 4. Nxe5 {[%emt 0:00:24]} Nxe5 {[%emt 0:03:08]} 5. d4 {[%emt 0:00:33]} Bd6 {[%emt 0:00:10]} 6. dxe5 {[%emt 0:00:25]} Bxe5 {[%emt 0:00:03]} 7. Be3 {[%emt 0:01:23]} Bxc3+ {[%emt 0:03:30]} 8. bxc3 {[%emt 0:00:06]} Qe7 {[%emt 0:04:16]} 9. Qd4 {[%emt 0:06:03]} Qf6 {[%emt 0:06:25]} 10. Qc5 {[%emt 0:07:16]} Ne7 {[%emt 0:05:43]} 11. Bg5 {[%emt 0:06:54]} Qe6 {[%emt 0:01:06]} 12. O-O-O {[%emt 0:07:25]} f6 {[%emt 0:15:43]} 13. Be3 {[%emt 0:06:41]} Qc6 {[%emt 0:13:46]} 14. Qh5+ {[%emt 0:12:37]} g6 {[%emt 0:07:03]} 15. Qh6 {[%emt 0:07:23]} Qxc3 {[%emt 0:01:46]} 16. Bd4 {[%emt 0:02:21]} Qa3+ {[%emt 0:03:40]} 17. Bb2 {[%emt 0:01:03]} Qxa2 {[%emt 0:04:00]} 18. Bxf6 {[%emt 0:01:41]} Rf8 {[%emt 0:00:49]} 19. Bxe7 {[%emt 0:08:53]} Kxe7 {[%emt 0:15:12]} 20. Qg7+ {[%emt 0:02:50]} Qf7 {[%emt 0:00:47]} 21. Qe5+ {[%emt 0:04:21]} Kd8 {[%emt 0:00:17]} 22. g3 {[%emt 0:08:51]} Qe7 {[%emt 0:06:58]} 23. Qd4 {[%emt 0:02:40]} a5 {[%emt 0:05:28]} 24. Qa4 {[%emt 0:03:26]} Rxf2 {[%emt 0:01:22]} 25. Bd3 {[%emt 0:01:03]} d6 {[%emt 0:00:26]} 26. Rdf1 {[%emt 0:01:29]} Rxf1+ {[%emt 0:00:28]} 27. Rxf1 {[%emt 0:00:07]} c5 {[%emt 0:00:43]} 28. Qb3 {[%emt 0:02:42]} Qg5+ {[%emt 0:00:19]} 29. Kb1 {[%emt 0:01:17]} Qe5 {[%emt 0:00:47]} 30. Qb6+ {[%emt 0:01:37]} Ke7 {[%emt 0:00:16]} 31. Bb5 {[%emt 0:01:25]} Qe6 {[%emt 0:00:41]} 32. Qc7+ {[%emt 0:00:25]} Bd7 {[%emt 0:00:04]} 33. Bxd7 {[%emt 0:00:12]} Qxd7 {[%emt 0:00:23]} 34. Rf7+ {[%emt 0:00:09]} Kxf7 {[%emt 0:00:09]} 35. Qxd7+ {[%emt 0:00:05]} Kf6 {[%emt 0:00:02]} 36. Qxd6+ {[%emt 0:00:06]} Kg7 {[%emt 0:00:09]} 37. Qxc5 {[%emt 0:00:30]} a4 {[%emt 0:00:04]} 38. Ka2 {[%emt 0:00:18]} Re8 {[%emt 0:00:08]} 39. Qd4+ {[%emt 0:00:29]} Kh6 {[%emt 0:00:04]} 40. Qxa4 {[%emt 0:00:10]} Re6 {[%emt 0:00:01]} 41. Qd4 {[%emt 0:00:42]} Rc6 {[%emt 0:00:10]} 42. c4 {[%emt 0:00:24]} Ra6+ {[%emt 0:00:08]} 43. Kb3 {[%emt 0:00:07]} Rc6 {[%emt 0:00:03]} 44. e5 {[%emt 0:00:05]} g5 {[%emt 0:00:08]} 45. Qd6+ {[%emt 0:00:26]} Kg7 {[%emt 0:00:20]} 46. Qd7+ {[%emt 0:00:17]} Kg6 {[%emt 0:00:05]} 47. Qxb7 {[%emt 0:00:12]} Re6 {[%emt 0:00:04]} 48. Qe4+ {[%emt 0:00:09]} Kh6 {[%emt 0:00:04]} 49. c5 {[%emt 0:00:16]} Kh5 {[%emt 0:00:08]} 50. Qxh7+ {[%emt 0:00:18]} Rh6 {[%emt 0:00:05]} 51. g4+ {[%emt 0:01:20]} Kxg4 {[%emt 0:00:05]} 52. Qxh6 {[%emt 0:00:04]} Kf3 {[%emt 0:00:06]} 53. e6 {[%emt 0:00:12]} Kg2 {[%emt 0:00:06]} 54. Qxg5+ {[%emt 0:00:08]} Kh1 {[%emt 0:00:02]} 55. e7 {[%emt 0:00:29]} Kxh2 {[%emt 0:00:06]} 56. e8=Q {[%emt 0:00:04]} Kh1 {[%emt 0:00:04]} 57. Qeh5# {[%emt 0:00:05]} 1-0

[Event "36th Indian-ch U13 Girls 2023"]
[Site "Secunderabad"]
[Date "2023.12.05"]
[Round "2.9"]
[White "Yasaswi Krishna Bommi"]
[Black "Kashvy Sabharwal"]
[Result "1-0"]
[ECO "B25"]
[WhiteElo "1543"]
[BlackElo "1213"]
[Annotator "NA RC"]
[PlyCount "89"]
[EventDate "2023.12.04"]
[EventType "swiss"]
[EventCountry "IND"]
[SourceTitle "playchess.com"]
[Source "ChessBase"]
[SourceQuality "1"]
[TimeControl "5400+30"]

1. Nf3 {[%emt 0:00:03]} Nf6 {[%emt 0:05:22]} 2. g3 {[%emt 0:00:10]} g6 {[%emt 0:00:52]} 3. Bg2 {[%emt 0:00:05]} Bg7 {[%emt 0:02:15]} 4. d3 {[%emt 0:00:59]} d6 {[%emt 0:03:05]} 5. e4 {[%emt 0:02:08]} c5 {[%emt 0:15:17]} 6. O-O {[%emt 0:03:22]} Nc6 {[%emt 0:11:49]} 7. Nc3 {[%emt 0:02:03]} Bg4 {[%emt 0:05:29]} 8. h3 {[%emt 0:02:48]} Bxf3 {[%emt 0:01:11]} 9. Bxf3 {[%emt 0:01:23]} Nd4 {[%emt 0:06:09]} 10. Bg2 {[%emt 0:01:24]} Rb8 {[%emt 0:16:53]} 11. Be3 {[%emt 0:04:47]} Nd7 {[%emt 0:12:25]} 12. a4 {[%emt 0:06:31]} Nc6 {[%emt 0:05:44]} 13. Qc1 {[%emt 0:06:02]} a6 {[%emt 0:07:20]} 14. Bh6 {[%emt 0:05:55]} O-O {[%emt 0:00:24]} 15. Bxg7 {[%emt 0:03:10]} Kxg7 {[%emt 0:00:02]} 16. f4 {[%emt 0:02:27]} h6 {[%emt 0:03:34]} 17. Ne2 {[%emt 0:04:51]} Qb6 {[%emt 0:00:31]} 18. Kh2 {[%emt 0:03:30]} Rbc8 {[%emt 0:00:37]} 19. g4 {[%emt 0:02:42]} Qc7 {[%emt 0:00:27]} 20. Ng3 {[%emt 0:01:42]} Nf6 {[%emt 0:00:27]} 21. c3 {[%emt 0:04:21]} Qd7 {[%emt 0:00:28]} 22. Qe3 {[%emt 0:02:14]} Qxg4 {[%emt 0:00:35]} 23. e5 {[%emt 0:03:12]} Nd5 {[%emt 0:00:32]} 24. Bxd5 {[%emt 0:00:41]} Qd7 {[%emt 0:00:12]} 25. e6 {[%emt 0:01:43]} fxe6 {[%emt 0:00:34]} 26. Bxe6 {[%emt 0:00:56]} Qc7 {[%emt 0:00:25]} 27. Nh5+ {[%emt 0:03:32]} Kh7 {[%emt 0:01:21]} 28. Rg1 {[%emt 0:02:03]} d5 {[%emt 0:00:00]} 29. Qg3 Rg8 {[%emt 0:01:00]} 30. Rae1 {[%emt 0:03:58]} Qd8 31. Bxg8+ {[%emt 0:00:30]} Qxg8 {[%emt 0:01:00]} 32. Rxe7+ {[%emt 0:02:10]} Nxe7 {[%emt 0:00:30]} 33. Nf6+ {[%emt 0:00:19]} Kh8 {[%emt 0:00:00]} 34. Nxg8 {[%emt 0:00:30]} Rxg8 {[%emt 0:00:00]} 35. Qh4 {[%emt 0:00:46]} Nf5 {[%emt 0:00:00]} 36. Qf6+ {[%emt 0:00:19]} Kh7 {[%emt 0:00:28]} 37. Qf7+ {[%emt 0:00:57]} Rg7 {[%emt 0:00:07]} 38. Qxd5 {[%emt 0:00:24]} Nh4 {[%emt 0:01:00]} 39. Re1 {[%emt 0:01:35]} b6 {[%emt 0:00:36]} 40. Re8 {[%emt 0:00:25]} a5 {[%emt 0:01:15]} 41. Qa8 {[%emt 0:01:42]} g5 {[%emt 0:00:31]} 42. Rh8+ {[%emt 0:00:27]} Kg6 {[%emt 0:00:13]} 43. Qe8+ {[%emt 0:00:46]} Rf7 {[%emt 0:00:44]} 44. Rg8+ {[%emt 0:00:09]} Kf6 {[%emt 0:00:14]} 45. Qe5# {[%emt 0:00:07]} 1-0

[Event "36th Indian-ch U13 Girls 2023"]
[Site "Secunderabad"]
[Date "2023.12.05"]
[Round "2.10"]
[White "Shradha Smaranika Nanda"]
[Black "Akshaya Sathi"]
[Result "0-1"]
[ECO "B92"]
[WhiteElo "1235"]
[BlackElo "1542"]
[Annotator "NA RC"]
[PlyCount "72"]
[EventDate "2023.12.04"]
[EventType "swiss"]
[EventCountry "IND"]
[SourceTitle "playchess.com"]
[Source "ChessBase"]
[SourceQuality "1"]
[TimeControl "5400+30"]

1. e4 {[%emt 0:01:27]} c5 {[%emt 0:01:46]} 2. Nf3 {[%emt 0:00:50]} d6 {[%emt 0:00:06]} 3. d4 {[%emt 0:00:05]} cxd4 {[%emt 0:00:05]} 4. Nxd4 {[%emt 0:00:11]} Nf6 {[%emt 0:00:21]} 5. Nc3 {[%emt 0:00:14]} a6 {[%emt 0:00:12]} 6. Be2 {[%emt 0:00:47]} e5 {[%emt 0:00:23]} 7. Nf3 {[%emt 0:00:28]} h6 {[%emt 0:01:31]} 8. h3 {[%emt 0:01:48]} Be6 {[%emt 0:01:40]} 9. Be3 {[%emt 0:03:08]} Be7 {[%emt 0:01:27]} 10. Qd2 {[%emt 0:02:08]} Nbd7 {[%emt 0:05:34]} 11. O-O {[%emt 0:02:20]} O-O {[%emt 0:01:59]} 12. Kh1 {[%emt 0:35:57]} b5 {[%emt 0:06:38]} 13. a3 {[%emt 0:01:14]} Qc7 {[%emt 0:08:04]} 14. Ne1 {[%emt 0:09:38]} Rfd8 {[%emt 1:07:44]} 15. f4 {[%emt 0:01:44]} Nb6 {[%emt 0:00:00]} 16. f5 {[%emt 0:17:17]} Bc4 {[%emt 0:00:00]} 17. Bxb6 {[%emt 0:10:08]} Qxb6 {[%emt 0:00:00]} 18. Bxc4 {[%emt 0:00:09]} bxc4 {[%emt 0:00:00]} 19. Nf3 {[%emt 0:03:54]} d5 {[%emt 0:00:00]} 20. exd5 {[%emt 0:03:26]} e4 {[%emt 0:00:00]} 21. Nh2 {[%emt 0:01:33]} e3 {[%emt 0:00:00]} 22. Qe2 {[%emt 0:01:03]} Nxd5 {[%emt 0:00:00]} 23. Nxd5 {[%emt 0:00:57]} Rxd5 {[%emt 0:00:00]} 24. Qxc4 {[%emt 0:00:33]} Rad8 {[%emt 0:00:00]} 25. b4 {[%emt 0:01:27]} Rd4 {[%emt 0:00:00]} 26. Qe2 {[%emt 0:00:28]} Rd2 {[%emt 0:00:00]} 27. Qc4 {[%emt 0:00:33]} e2 {[%emt 0:00:00]} 28. Rfe1 {[%emt 0:00:27]} Qf2 {[%emt 0:00:00]} 29. Ng4 {[%emt 0:00:21]} Qg3 {[%emt 0:00:00]} 30. Qe4 {[%emt 0:00:44]} Bh4 {[%emt 0:00:00]} 31. Qf3 {[%emt 0:00:29]} Rd1 {[%emt 0:00:00]} 32. Qxg3 {[%emt 0:00:31]} Bxg3 {[%emt 0:00:00]} 33. Ne3 {[%emt 0:00:23]} Rxe1+ {[%emt 0:00:06]} 34. Rxe1 {[%emt 0:00:06]} Bxe1 {[%emt 0:00:03]} 35. Kg1 {[%emt 0:00:58]} Bg3 {[%emt 0:00:07]} 36. Nf1 {[%emt 0:00:16]} Rd1 {[%emt 0:00:07]} 0-1